Cogmind - Beta 14 @@@ ROGUE MODE // 2024.11.04 @ 00:44:26 Player: OG DANIEL Result: Self-destructed Performance ------------- Evolutions (1) 500 Regions Visited (2) 400 Robots Destroyed (32) 160 Value Destroyed (544) 544 Prototype IDs (0) 0 Alien Tech Used (0) 0 Bonus (0) 0 TOTAL SCORE: 1604 Bonus ------- None Cogmind --------- Core Integrity 202/400 Matter 248/300 Energy 10/100 System Corruption 0% Temperature Cool (12) Movement Core (1500) Ox29 Location -9/Materials Parts ------- > --- POWER (1) -------- (None) > --- PROPULSION (3) --- (None) > --- UTILITY (3) ------ Huge Storage Unit > --- WEAPON (2) ------- Light EM Pulse Cannon Light EM Pulse Cannon > --- INVENTORY (25) --- Ion Engine Light Ion Engine Aluminum Leg Aluminum Leg Wheel Flight Unit Heat Sink Small Laser Light Assault Rifle Shotgun Peak State ------------ > --- POWER ------------ Ion Engine > --- PROPULSION ------- Aluminum Leg Aluminum Leg Aluminum Leg > --- UTILITY ---------- Huge Storage Unit > --- WEAPON ----------- Small Laser Particle Gun > --- INVENTORY -------- Ion Engine Light Ion Engine Aluminum Leg Aluminum Leg Wheel Flight Unit Heat Sink Small Laser Small Laser Light Assault Rifle [Rating: 9] Favorites ----------- Power Ion Engine Engine Ion Engine Propulsion Light Treads Treads Light Treads Leg Aluminum Leg Wheel Compact Wheel Utility Huge Storage Unit Device Heat Sink Storage Huge Storage Unit Weapon Small Laser Energy Gun Small Laser Energy Cannon Light EM Pulse Cannon Ballistic Gun Light Assault Rifle Ballistic Cannon Light Cannon Build | -11 -10 -9 ------- Run | Yrd Mat Mat Slots Evolved 2 | . . 2 Power . | . . . Propulsion 1 | . . 1 Utility 1 | . . 1 Weapon . | . . . Parts Attached 32 | 7 13 12 Power 3 | 1 1 1 Engine 3 | 1 1 1 Core . | . . . Reactor . | . . . Propulsion 10 | 2 3 5 Treads 2 | 2 . . Leg 7 | . 3 4 Wheel 1 | . . 1 Hover . | . . . Flight . | . . . Utility 3 | 1 2 . Device 1 | . 1 . Storage 2 | 1 1 . Processor . | . . . Hackware . | . . . Protection . | . . . Artifact . | . . . Weapon 16 | 3 7 6 Energy Gun 9 | 2 4 3 Energy Cannon 2 | . . 2 Ballistic Gun 4 | 1 2 1 Ballistic Cannon 1 | . 1 . Launcher . | . . . Special Weapon . | . . . Impact Weapon . | . . . Slashing Weapon . | . . . Piercing Weapon . | . . . Special Melee Weapon . | . . . Unidentified Prototypes . | . . . Parts Lost 14 | . 3 11 Power 2 | . . 2 Propulsion 6 | . 1 5 Utility . | . . . Weapon 6 | . 2 4 Highest Loss Streak 6 | . 2 6 To Critical Strikes . | . . . Average Slot Usage (%) 80 | . 84 67 Engine 12 | . 14 8 Treads 20 | . 25 3 Leg 6 | . 2 23 Storage 13 | . 14 11 Energy Gun 13 | . 13 13 Ballistic Gun 5 | . 5 7 Ballistic Cannon 6 | . 8 . Peak Build Rating 9 | 5 7 9 Average Rating 6 | 4 6 7 On Entrance 4 | . 5 7 Naked Turns . | . . . Heaviest Build 90 | 11 90 89 Greatest Support 40 | 40 40 30 Greatest Overweight (x) 8 | . 8 8 Average Overweight (x) 1 | . 1 3 Largest Inventory Capacity 25 | 8 25 25 Average Capacity 21 | 7 22 25 Most Carried 13 | 7 12 13 Average Carried 9 | 5 9 10 Final Capacity 25 | 8 25 25 Final Carried 12 | 7 12 10 Class Distribution -------------------- 97% | Mutant Dominant Class ---------------- Mutant | -10/Materials Mutant | -9/Materials Resources | -11 -10 -9 ----------- Run | Yrd Mat Mat Matter Collected 586 | 267 205 114 Remotely . | . . . Salvage Created 1065 | 160 674 231 Parts 69 | 13 47 9 Haulers Intercepted . | . . . Recyclers Shooed 4 | . 2 2 Parts Field Recycled . | . . . Retrieved Matter . | . . . Parts Self-Destructed . | . . . Prevented . | . . . Kills | -11 -10 -9 ------- Run | Yrd Mat Mat Combat Hostiles Destroyed 16 | . 11 5 Guns 11 | . 6 5 Cannons 5 | . 5 . Classes Destroyed 8 | 3 4 1 Worker 4 | 2 2 . Builder 1 | . 1 . Tunneler 4 | 3 . 1 Recycler 5 | 1 4 . Watcher 2 | . 2 . Swarmer 6 | . 6 . Grunt 8 | . 5 3 Sentry 2 | . . 2 Best Kill Streak 4 | 4 4 3 Combat Bots Only 3 | . 3 3 Max Kills in Single Turn 2 | 1 2 1 Gunslinging . | . . . Exploded . | . . . Melee . | . . . Uniques/NPCs Destroyed . | . . . Combat | -11 -10 -9 -------- Run | Yrd Mat Mat Hostile Shots Fired 210 | . 101 109 Missed 58 | . 24 34 Damage Taken 1828 | . 773 1055 Core 391 | . 193 198 Absorbed by Shields . | . . . Core Remaining (%) 61 | 100 22 . Volleys Fired 109 | 16 51 42 Largest 2 | 1 2 2 Hottest 105 | 40 75 105 Shots Fired 171 | 16 90 65 Gun 148 | 16 69 63 Cannon 23 | . 21 2 Launcher . | . . . Special . | . . . Kinetic 70 | . 47 23 Thermal 72 | 16 16 40 Explosive . | . . . Electromagnetic 29 | . 27 2 Robot Hit Streak 7 | 6 7 7 Robot Miss Streak 5 | 1 4 5 Penetration Max . | . . . Secondary Targets 1 | . . 1 Max Gunslinging Chain 1 | . . 1 Shots Hit Robots 99 | 12 48 39 Core Hits 50 | 7 27 16 Critical Kills . | . . . Critical Parts Destroyed . | . . . Critical Strikes 4 | . 4 . Blast 2 | . 2 . Corrupt 2 | . 2 . Melee Attacks . | . . . Impact . | . . . Slashing . | . . . Piercing . | . . . Sneak Attacks . | . . . Combat Hostiles . | . . . Follow-up Attacks . | . . . Damage Inflicted 1420 | 134 771 515 Guns 1111 | 133 463 515 Cannons 206 | . 206 . Explosions 102 | . 102 . Melee . | . . . Ramming 1 | 1 . . Kinetic 556 | . 347 209 Thermal 651 | 133 212 306 Explosive . | . . . Electromagnetic 212 | . 212 . Impact . | . . . Slashing . | . . . Piercing . | . . . Highest Corruption . | . . . Average Corruption . | . . . Corruption Purged . | . . . Corruption Blocked . | . . . Overload Shots . | . . . Overflow Damage . | . . . Projectiles . | . . . Explosions . | . . . Melee . | . . . Knockbacks 2 | . 2 . Impact . | . . . Kinetic 2 | . 2 . Secondary . | . . . Self-Inflicted Damage 54 | . 54 . Shots 2 | . 2 . Rammed 1 | 1 . . Targets Rammed 1 | 1 . . Kicked . | . . . Crushed . | . . . Highest Temperature 117 | . 117 110 Average Temperature 39 | . 39 39 Received Heat Transfer 768 | . 222 546 Siege Activations . | . . . Robots Corrupted . | . . . Combat Hostiles . | . . . Parts Fried . | . . . Impact Corruptions . | . . . Robots Melted . | . . . Combat Hostiles . | . . . Parts Melted . | . . . Heat Transferred 1399 | 300 400 699 Parts Sabotaged . | . . . Parts Stolen . | . . . Parts Stripped . | . . . Power Chain Reactions 2 | . 2 . Alert | -11 -10 -9 ------- Run | Yrd Mat Mat Peak Influence 247 | 30 247 141 Initial 30 | . 19 30 Average 75 | 6 86 67 Maximum Alert Level 1 | . 1 . Low Security (%) 95 | 100 93 100 Level 1 4 | . 6 . Level 2 . | . . . Level 3 . | . . . Level 4 . | . . . Level 5 . | . . . High Security . | . . . Max Security . | . . . Squads Dispatched 1 | . 1 . Investigation 1 | . 1 . Extermination . | . . . Reinforcement . | . . . Assault . | . . . Garrison . | . . . Intercept . | . . . Searches Triggered . | . . . Construction Impeded . | . . . Haulers Reinforced . | . . . Active Scanning Responses . | . . . Cargo Convoy Interrupts . | . . . Stealth | -11 -10 -9 --------- Run | Yrd Mat Mat Distress Signals 1 | . 1 . Communications Jammed . | . . . Distress Signals . | . . . Times Spotted 27 | . 18 9 Peak Tracking Total 3 | . 3 3 Tactical Retreats 7 | . 6 1 Traps | -11 -10 -9 ------- Run | Yrd Mat Mat Traps Triggered 1 | . 1 . Indirectly . | . . . Trap Hack Attempts . | . . . Triggered . | . . . Disarmed . | . . . Reprogrammed . | . . . Reused . | . . . Traps Extracted . | . . . Installed . | . . . Triggered . | . . . Machines | -11 -10 -9 ---------- Run | Yrd Mat Mat Machines Disabled 1 | . 1 . Max in Single Turn 1 | . 1 . Machines Repaired . | . . . Machines Dismantled . | . . . Machines Sabotaged . | . . . Overloaded Fab Kills . | . . . Hacking | -11 -10 -9 --------- Run | Yrd Mat Mat Machines Accessed 1 | . 1 . Terminals 1 | . 1 . Fabricators . | . . . Repair Stations . | . . . Recycling Units . | . . . Scanalyzers . | . . . Garrison Access . | . . . Total Hacks 1 | . 1 . Successful . | . . . Failed 1 | . 1 . Catastrophic . | . . . Database Lockouts . | . . . Manual . | . . . Terminals 1 | . 1 . Fabricators . | . . . Repair Stations . | . . . Recycling Units . | . . . Scanalyzers . | . . . Garrison Access . | . . . Terminal Hacks . | . . . Fabricator Hacks . | . . . Repair Station Hacks . | . . . Recycling Unit Hacks . | . . . Scanalyzer . | . . . Garrison Access Hacks . | . . . Unauthorized Hacks . | . . . Terminals . | . . . Fabricators . | . . . Repair Stations . | . . . Recycling Units . | . . . Scanalyzers . | . . . Garrison Access . | . . . Data Cores Recovered . | . . . Used . | . . . Hacking Detections . | . . . Full Trace Events . | . . . Feedback Events . | . . . Feedback Blocked . | . . . Robot Schematics Acquired . | . . . Robots Built . | . . . Authchips . | . . . Time . | . . . Total Robot Build Rating . | . . . Part Schematics Acquired . | . . . Parts Built . | . . . Authchips . | . . . Time . | . . . Total Part Build Rating . | . . . Parts Repaired . | . . . Time . | . . . Parts Recycled . | . . . Recycled Matter . | . . . Retrieved Matter . | . . . Retrieved Components . | . . . Parts Scanalyzed . | . . . Part Schematics Acquired . | . . . Parts Damaged . | . . . Bothacking | -11 -10 -9 ------------ Run | Yrd Mat Mat Used RIF Installer . | . . . Robots Hacked . | . . . Non-combat . | . . . Combat . | . . . Robot Hacks Applied . | . . . Relay Couplers Released . | . . . Fabnet Peak Effective % . | . . . Robots Rewired . | . . . Allies Hacked . | . . . Hacks Repelled . | . . . Allies | -11 -10 -9 -------- Run | Yrd Mat Mat Total Allies . | . . . Largest Group . | . . . Highest-Rated Group . | . . . Highest-Rated Ally . | . . . Total Orders . | . . . Ally Attacks . | . . . Total Damage . | . . . Kills . | . . . Allies Corrupted . | . . . Allies Melted . | . . . Intel | -11 -10 -9 ------- Run | Yrd Mat Mat Robot Analysis Total . | . . . Derelict Logs Recovered . | . . . Drone Launches . | . . . Drone Recoveries . | . . . Exploration | -11 -10 -9 ------------- Run | Yrd Mat Mat Turns Passed 1806 | 168 1280 358 Spaces Moved 508 | 77 366 65 Core 4 | 4 . . Treads 412 | 73 339 . Legs 92 | . 27 65 Wheels . | . . . Hover . | . . . Flight . | . . . Fastest Speed 50 | 50 160 260 Average Speed 287 | 154 303 356 Slowest Speed 680 | 160 680 680 Overloaded Moves . | . . . Propulsion Burnouts . | . . . Robots Hopped . | . . . Cave-ins Triggered . | . . . Exploration Rate (%) 20 | 6 49 6 Regions Visited 2 Branch Regions . Pre-discovered Areas . | . . . Known Exits Taken . | . . . Unknown Exits Taken 2 | 1 1 . Scrap Searched . | . . . Spaces Dug . | . . . Terrain Destroyed 11 | . 11 . Melee . | . . . Projectile . | . . . AOE 11 | . 11 . Terrain Rammed . | . . . Walls Destroyed . | . . . Machines Disabled . | . . . Actions | -11 -10 -9 --------- Run | Yrd Mat Mat Total 683 | 107 452 124 Wait 12 | . 11 1 Move 506 | 76 365 65 Hop . | . . . Pick Up 16 | 5 8 3 Fast Attach 11 | 7 2 2 Attach 9 | . 3 6 Detach 2 | 2 . . Swap 12 | . 8 4 Drop 5 | . 4 1 Fire 109 | 16 51 42 Melee . | . . . Ram . | . . . Kick . | . . . Crush 1 | 1 . . Escape Stasis . | . . . Rewire . | . . . Trap . | . . . Miscellaneous . | . . . Route ------- -11/Scrapyard -10/Materials (discovered 2 exits: [*Mat x2]) -9/Materials History --------- Turn | Location | Event 18 | -11/Scrapyard | Discovered new exit (range 15) 169 | -11/Scrapyard | Entered Materials 301 | -10/Materials | Build established: Mutant 518 | -10/Materials | Discovered new exit (range 16) 1088 | -10/Materials | Discovered new exit (range 7) 1207 | -10/Materials | Core integrity fell below 50% 1449 | -10/Materials | Entered another Materials area 1449 | -9/Materials | Evolved 2 slots: Propulsion x1, Utility x1 1598 | -9/Materials | Lost 4 parts (1p2n1w) 1807 | -9/Materials | Self-destructed Last Messages --------------- 01622_ Acquired Ion Engine. 01624_ Acquired 35 matter. 01634_ Acquired 23 matter. 01642_ T-07 Excavator destroyed. 01670_ Particle Gun destroyed. 01673_ Y-45 Defender destroyed. 01682_ Acquired Shotgun. 01698_ Acquired Lgt. EM Pulse Cannon. 01710_ Dropped Sml. Laser. 01740_ Acquired 12 matter. 01772_ Aluminum Leg destroyed. 01776_ Critical hit (Burn: +37). 01777_ Y-45 Defender destroyed. 01778_ Critical hit (Burn: +37). 01784_ Aluminum Leg destroyed. 01786_ Sml. Laser destroyed. 01792_ Aluminum Leg destroyed. 01797_ Ion Engine destroyed. 01800_ Shotgun destroyed. 01802_ G-47 Trooper destroyed. Map ----- +----------------------------------------------------+ | ?????????????????????????????????????????????????? | | ?????????????????????????????????????????????????? | | ?????????????????????????????????????????????????? | | ?????????????????????????????????????????????????? | | ?????????????????????????????????????????????????? | | ?????????????????????????????????????????????????? | | ?????????????????????????????????????????????????? | | ?????????????????????????????????????????????????? | | ?????????????????????????????????????????????????? | | ?????????????????????????????????????????????????? | | ?????????????????????????????????????????????????? | | ?????????????????????????????????????????????????? | | ?????????????????????????????????????????????????? | | ?????????????????????????????????????????????????? | | ?????????????????????????????????????????????????? | | ???????????????????????????????+?????????????????? | | ??????????????????????????????? ?????????????????? | | ??????????????????????????????? ?????????????????? | | ??????????????????????????????# #????????????????? | | ?????????????????????????????? ????????????????? | | ??????????????????????????????# #????????????????? | | ??????????????????????##??????# #????????????????? | | ????????????????????### ####??# #????????????????? | | ????????????????????# ==% #??# #??????###+###???? | | ????????????????????# == #??# ######## ##### | | ????????????????????# @ #### % | | ?????????????? + /g %+= | | ??????????# # # !###### | | ????????????????????# #????####+### ##### | | ????????????????????########????# #######???? | | ????????????????????????????????# #?????????? | | ???????????????????????????????## | #?????????? | | ???????????????????????????????#% |[ #?????????? | | ???????????????????????????????## | #?????????? | | ????????????????????????????????# #?????????? | | ????????????????????????????????########?????????? | | ?????????????????????????????????????????????????? | | ?????????????????????????????????????????????????? | | ?????????????????????????????????????????????????? | | ?????????????????????????????????????????????????? | | ?????????????????????????????????????????????????? | | ?????????????????????????????????????????????????? | | ?????????????????????????????????????????????????? | | ?????????????????????????????????????????????????? | | ?????????????????????????????????????????????????? | | | | | | | | | | | +----------------------------------------------------+ Best States ------------- Heat Dissipation 35 Energy Generation 10 Energy Capacity 250 Matter Stores 300 Matter Capacity 300 Sight Range 16 Terrain Scan Density 10 Evasion (%) 40 Recoil Reduction 2 Item Schematics ----------------- None Robot Schematics ------------------ None Fabricated ------------ Nothing Alien Tech Used ----------------- None Achievements -------------- None Challenges ------------ None Game ------ Seed BlastHoverAmplifier Manual? 0 Play Time 00:14:26 Cumulative 7.4 hours Start 2024.11.04 @ 00:32:19 End 2024.11.04 @ 00:44:26 Sessions 1 Manual Loads 0 Difficulty Rogue Special Mode None Game No. 31 Rogue 31 Adventurer 0 Explorer 0 Win Type - Total 0 Types 0/0/0/0/0/0/0/0/0 Lore% 5 Gallery% 14 Achievement% 12 Wizard Run 0 Options --------- Layout 1 ASCII 0 Keyboard 0 Movement Numpad Keybinds 0 Fullscreen 1 Font 24/Smallcaps Map View 50x35 Zoom Use 0% Tactical HUD 1 Map Filters NONE Filters NONE Steam 1 RUN: 056d90e4-f0a2-49e4-aa1b-763bc93d75d7